bitfinex/quotes_BTCUSD_20240828
["timestamp","ask_amount","ask_price","bid_price","bid_amount"]
[1724853564225,0.52965574,59570.0,59569.0,0.167872]
[1724853564442,0.50334,59570.0,59569.0,0.503617]
[1724853564643,0.50334,59570.0,59569.0,0.839362]
[1724853564852,0.167878,59567.0,59566.0,0.0009031]
[1724853565090,1.10797402,59567.0,59566.0,0.0009031]
[1724853565269,1.77948602,59567.0,59566.0,0.0009031]
[1724853565480,2.19154202,59567.0,59566.0,0.0009031]
[1724853565916,1.88210776,59567.0,59566.0,0.0009031]
[1724853566866,1.11059576,59567.0,59566.0,0.0009031]
[1724853567073,1.44635176,59567.0,59566.0,0.0009031]
[1724853568567,1.78210776,59567.0,59566.0,0.0009031]
[1724853568780,1.44635176,59567.0,59566.0,0.0009031]
[1724853569012,1.11059576,59567.0,59566.0,0.0009031]
[1724853569231,1.44635176,59567.0,59566.0,0.0009031]
[1724853569444,1.44336886,59567.0,59566.0,0.0009031]
[1724853570458,1.77912486,59567.0,59566.0,0.0009031]
[1724853570898,1.77912486,59567.0,59549.0,0.04959516]
[1724853570899,1.257282,59550.0,59549.0,0.04959516]
[1724853571111,1.821022,59550.0,59549.0,0.04959516]
[1724853571319,0.167978,59532.0,59525.0,0.84139686]
[1724853571573,0.167978,59532.0,59527.0,0.167989]
[1724853571785,0.00100002,59533.0,59526.0,0.335985]
[1724853571999,0.00100002,59533.0,59530.0,0.167982]
[1724853572224,0.00100002,59533.0,59521.0,0.001]
[1724853572225,0.00100002,59533.0,59529.0,0.167982]
[1724853572437,0.16897402,59533.0,59526.0,0.335983]
[1724853572641,0.167977,59532.0,59528.0,0.167987]
[1724853572884,0.00100002,59531.0,59521.0,0.05521746]
[1724853573112,0.02633039,59534.0,59533.0,0.503922]
[1724853573367,0.52967039,59534.0,59533.0,0.83987]
[1724853574096,0.50334,59534.0,59533.0,1.175818]
[1724853574325,0.23711702,59534.0,59533.0,1.72122676]
[1724853575793,0.19080509,59534.0,59533.0,1.72122676]
[1724853576234,0.02732521,59553.0,59552.0,0.50376]
[1724853576445,0.02632519,59553.0,59552.0,0.16792]
[1724853576683,0.00100002,59553.0,59533.0,0.0019031]
[1724853576896,0.0661,59551.0,59533.0,0.3368481]
[1724853577120,0.08390002,59550.0,59544.0,0.167942]
[1724853577328,0.08390002,59550.0,59549.0,0.167928]
[1724853577541,0.0829,59550.0,59549.0,0.167928]
[1724853577763,0.0829,59550.0,59546.0,0.33587]
[1724853578006,0.0829,59550.0,59549.0,0.167928]
[1724853578221,0.0829,59550.0,59538.0,0.04982254]
[1724853578695,0.0829,59550.0,59548.0,0.16793]
[1724853578912,0.0829,59550.0,59533.0,0.0009031]
[1724853578913,0.0829,59550.0,59549.0,0.167928]
[1724853579132,0.02632475,59553.0,59552.0,0.50376]
[1724853579340,0.02632475,59553.0,59552.0,0.8396]
[1724853579770,0.02632475,59553.0,59538.0,0.04981129]
[1724853579985,0.0825,59552.0,59538.0,0.04981129]
[1724853580204,0.0825,59552.0,59533.0,0.0009031]
[1724853580205,0.00100002,59551.0,59533.0,0.3368511]
[1724853580428,0.0825,59550.0,59533.0,0.0009031]
[1724853580654,0.0825,59540.0,59533.0,0.0009031]
[1724853580861,0.00100002,59539.0,59535.0,0.335936]
[1724853581074,0.00100002,59539.0,59536.0,0.33593]
[1724853581285,0.00100002,59539.0,59533.0,0.0009031]
[1724853581286,0.167962,59538.0,59533.0,0.0009031]
[1724853581492,0.00100002,59537.0,59535.0,0.167967]
[1724853581718,0.00100002,59537.0,59533.0,0.0009031]
[1724853582012,0.00100002,59537.0,59535.0,0.167967]
[1724853582278,0.02733159,59537.0,59533.0,0.0009031]
[1724853582529,0.167967,59536.0,59533.0,0.0009031]
[1724853582790,0.00100002,59535.0,59533.0,0.0009031]
[1724853583724,0.16896802,59535.0,59533.0,0.0009031]
[1724853583951,0.167971,59534.0,59533.0,0.0009031]
[1724853584181,0.16897102,59534.0,59533.0,0.0009031]
[1724853584615,0.50491302,59534.0,59533.0,0.0009031]
[1724853584831,0.976855,59534.0,59533.0,0.0009031]
[1724853585265,0.640913,59534.0,59533.0,0.0009031]
[1724853585686,1.312797,59534.0,59533.0,0.0009031]
[1724853586131,0.508929,59532.0,59531.0,0.00020221]
[1724853586342,0.508929,59532.0,59511.0,0.0004]
[1724853586343,0.840037,59521.0,59511.0,0.0004]
[1724853586554,1.756472,59521.0,59518.0,0.04995192]
[1724853586769,1.756472,59521.0,59511.0,0.0004]
[1724853586979,1.818372,59521.0,59511.0,0.0004]
[1724853587186,1.50869739,59521.0,59511.0,0.0004]
[1724853587406,0.83666739,59521.0,59515.0,0.168023]
[1724853587617,0.66866039,59521.0,59515.0,0.336046]
[1724853587868,0.66866039,59521.0,59517.0,0.168017]
[1724853588079,0.66866039,59521.0,59511.0,0.0004]
[1724853588080,1.315571,59515.0,59511.0,0.0004]
[1724853588294,1.819491,59515.0,59511.0,0.0004]
[1724853588520,1.315631,59512.0,59511.0,0.0004]
[1724853588738,1.824551,59512.0,59511.0,0.0004]
[1724853588951,2.160617,59512.0,59511.0,0.0004]
[1724853589165,1.85089713,59512.0,59511.0,0.0004]
[1724853589632,1.84589713,59512.0,59511.0,0.0004]
[1724853590089,1.85289713,59512.0,59511.0,0.0004]
[1724853590330,1.95089713,59512.0,59511.0,0.0004]
[1724853590577,1.95089713,59512.0,59493.0,0.04978608]
[1724853590578,1.252929,59507.0,59493.0,0.04978608]
[1724853590842,1.416229,59507.0,59491.0,0.0004]
[1724853591088,1.920149,59507.0,59491.0,0.168491]
[1724853591344,1.920149,59507.0,59491.0,0.0004]
[1724853592314,2.256243,59507.0,59491.0,0.0004]
[1724853592540,2.263243,59507.0,59491.0,0.0004]
[1724853593043,1.65585,59506.0,59491.0,0.0004]
[1724853593286,2.59587,59506.0,59491.0,0.0004]
[1724853593534,2.59587,59506.0,59481.0,0.007]
[1724853593535,1.513062,59482.0,59481.0,0.007]
[1724853593793,1.513062,59482.0,59476.0,0.04993765]
[1724853593794,0.596796,59477.0,59476.0,0.04993765]
[1724853594050,1.825844,59477.0,59476.0,0.04993765]
[1724853594305,0.509421,59474.0,59473.0,0.009031]
[1724853594544,1.422022,59474.0,59473.0,0.009031]
[1724853594805,1.758303,59474.0,59473.0,0.009031]
[1724853595064,0.74946,59474.0,59473.0,0.009031]
[1724853595315,0.74946,59474.0,59447.0,0.00699999]
[1724853595316,0.0774,59472.0,59445.0,0.009031]
[1724853595587,0.418743,59463.0,59462.0,0.0498545]
[1724853595834,0.0774,59463.0,59445.0,0.009031]
[1724853596064,0.00600002,59462.0,59445.0,0.009031]
[1724853596333,0.16819,59457.0,59445.0,0.009031]
[1724853596563,0.00100002,59456.0,59445.0,0.009031]
[1724853596806,0.00100002,59456.0,59446.0,0.336439]
[1724853597071,0.53029038,59461.0,59446.0,0.336439]
[1724853597072,0.00100002,59460.0,59459.0,0.168183]
[1724853597351,0.50492002,59460.0,59450.0,0.01013]
[1724853597596,0.50392,59460.0,59459.0,0.168183]
[1724853597850,0.53028568,59460.0,59459.0,0.168183]
[1724853598115,0.53028568,59460.0,59459.0,1.177281]
[1724853598369,0.53028568,59460.0,59459.0,0.504549]
[1724853598629,0.53028568,59460.0,59459.0,0.168183]
[1724853598874,0.53028568,59460.0,59459.0,0.840915]
[1724853599127,0.53028568,59460.0,59459.0,0.168183]
[1724853599373,0.53028568,59460.0,59459.0,0.504549]
[1724853599610,0.53028568,59460.0,59459.0,0.840915]
[1724853599844,0.53028568,59460.0,59459.0,0.85291499]
[1724853600069,0.53028568,59460.0,59459.0,1.187281]
[1724853600295,0.53028568,59460.0,59459.0,1.69710777]
[1724853600514,0.53028568,59460.0,59459.0,1.40114176]
[1724853600754,0.50392,59460.0,59459.0,1.215681]
[1724853600978,0.50392,59460.0,59454.0,0.336391]
[1724853601206,0.08120002,59459.0,59451.0,0.009431]
[1724853601436,0.50392,59460.0,59459.0,0.504549]
[1724853601651,0.55387,59460.0,59459.0,0.840915]
[1724853601874,0.55387,59460.0,59459.0,1.17928099]
[1724853602098,0.55387,59460.0,59459.0,1.37274176]
[1724853602308,0.55387,59460.0,59459.0,1.187281]
[1724853602525,0.55387,59460.0,59459.0,0.850915]
[1724853602741,0.55387,59460.0,59459.0,1.187281]
[1724853602949,0.55387,59460.0,59459.0,1.70910776]
[1724853603602,0.51059891,59460.0,59459.0,1.73210776]
[1724853603812,0.51059891,59460.0,59459.0,1.19928099]
[1724853604016,0.51059891,59460.0,59459.0,1.20428099]
[1724853604232,0.51059891,59460.0,59459.0,1.54064699]
[1724853604448,0.51059891,59460.0,59459.0,1.70910776]
[1724853604651,0.51059891,59460.0,59459.0,1.73210776]
[1724853605095,0.00423922,59460.0,59459.0,2.09687376]
[1724853605326,0.0659,59489.0,59459.0,2.09687376]
[1724853605327,0.0659,59489.0,59487.0,0.168103]
[1724853605532,0.0659,59489.0,59473.0,0.336286]
[1724853605739,0.0659,59489.0,59470.0,0.01]
[1724853605952,0.0659,59489.0,59488.0,0.168101]
[1724853606372,0.0659,59489.0,59488.0,0.504303]
[1724853607058,0.0758,59491.0,59490.0,0.504285]
[1724853607264,0.0769,59499.0,59498.0,0.168072]
[1724853607694,0.0769,59499.0,59485.0,0.01336158]
[1724853607695,0.0769,59509.0,59508.0,0.168044]
[1724853607924,0.0769,59509.0,59496.0,0.0284]
[1724853607925,0.07790002,59509.0,59496.0,0.0284]
[1724853608142,0.07790002,59509.0,59508.0,0.168044]
[1724853608369,0.079,59515.0,59514.0,0.168027]
[1724853608575,0.079,59515.0,59514.0,0.504082]
[1724853609004,0.10534235,59515.0,59514.0,0.504082]
[1724853609234,0.10534235,59515.0,59514.0,0.840137]
[1724853609451,0.02634235,59515.0,59514.0,1.176192]
[1724853609896,0.02634235,59515.0,59514.0,1.186192]
[1724853610335,0.02634235,59515.0,59514.0,1.176192]
[1724853610563,0.02634235,59515.0,59509.0,0.336078]
[1724853610776,0.02634235,59515.0,59497.0,0.01]
[1724853610777,0.00100002,59514.0,59497.0,0.0384]
[1724853610994,0.00100002,59514.0,59513.0,0.504091]
[1724853611220,0.00100002,59514.0,59507.0,0.336094]
[1724853611423,0.00100002,59514.0,59513.0,0.504091]
[1724853611832,0.02634235,59515.0,59514.0,0.168027]
[1724853612097,0.02634235,59515.0,59499.0,0.04986605]
[1724853612349,0.02634235,59515.0,59505.0,0.336101]
[1724853612596,0.02634235,59515.0,59508.0,0.336085]
[1724853612821,0.02634235,59515.0,59497.0,0.0434]
[1724853612822,0.02634235,59515.0,59497.0,0.0384]
[1724853613087,0.0829,59513.0,59503.0,0.04984441]
[1724853613271,0.168088,59493.0,59486.0,0.168106]
[1724853613484,0.1449,59504.0,59485.0,0.168108]
[1724853613485,0.168093,59491.0,59485.0,0.168108]
[1724853613704,0.168105,59487.0,59481.0,0.168119]
[1724853613922,0.168105,59487.0,59481.0,0.04913455]
[1724853614151,0.168118,59482.0,59481.0,0.04913455]
[1724853614394,0.92349002,59482.0,59481.0,0.04913455]
[1724853614630,0.08290002,59482.0,59465.0,0.336331]
[1724853614869,0.0819,59482.0,59479.0,0.168123]
[1724853615093,0.0826,59488.0,59485.0,0.336219]
[1724853615307,0.00100002,59487.0,59474.0,0.0284]
[1724853615511,0.00100002,59487.0,59473.0,0.01]
[1724853615715,0.00100002,59487.0,59486.0,0.168106]
[1724853615925,0.10895376,59488.0,59484.0,0.168111]
[1724853616167,0.10895376,59488.0,59486.0,0.168105]
[1724853616387,0.02635376,59488.0,59487.0,0.50431]
[1724853616592,0.02635376,59488.0,59487.0,0.840517]
[1724853616810,0.02635376,59488.0,59487.0,1.176724]
[1724853617024,0.02635376,59488.0,59487.0,1.72479177]
[1724853617469,0.00100002,59506.0,59487.0,0.336207]
[1724853617470,0.336107,59505.0,59487.0,0.336207]
[1724853617677,0.168085,59494.0,59487.0,0.168102]
[1724853617904,0.336142,59499.0,59489.0,0.168097]
[1724853617905,0.08080002,59493.0,59489.0,0.168097]
[1724853618126,0.08080002,59493.0,59488.0,0.00769178]
[1724853618127,0.504294,59489.0,59488.0,0.00769178]
[1724853618367,0.504294,59489.0,59482.0,0.04945501]
[1724853618368,0.168115,59483.0,59482.0,0.04945501]
[1724853618582,0.168115,59483.0,59451.0,0.009431]
[1724853618583,0.65014,59460.0,59451.0,0.009431]
[1724853618808,0.9865,59460.0,59451.0,0.009431]
[1724853619231,1.34922659,59460.0,59457.0,0.04929148]
[1724853619497,1.34922659,59460.0,59431.0,0.0004]
[1724853619498,0.0757,59457.0,59431.0,0.0004]
[1724853619736,0.09,59431.0,59411.0,0.03160242]
[1724853620030,0.505041,59401.0,59389.0,0.01206346]
[1724853620223,0.168347,59401.0,59384.0,0.05898342]
[1724853620465,0.168347,59401.0,59381.0,0.00022448]
[1724853620466,0.168347,59401.0,59386.0,0.00199999]
[1724853620754,0.168347,59401.0,59400.0,0.16839]
[1724853620755,0.50487,59401.0,59400.0,0.16839]
[1724853620946,0.968751,59401.0,59400.0,4e-05]
[1724853621182,1.148611,59401.0,59400.0,4e-05]
[1724853621414,1.485305,59401.0,59400.0,4e-05]
[1724853621939,0.245472,59392.0,59391.0,0.0004]
[1724853622223,0.50487,59392.0,59391.0,0.0004]
[1724853622565,0.50487,59392.0,59391.0,0.168775]
[1724853622751,0.50487,59392.0,59391.0,0.0004]
[1724853622752,0.755642,59392.0,59391.0,0.0004]
[1724853623017,0.50487,59392.0,59391.0,0.0004]
[1724853623514,0.803229,59392.0,59391.0,0.0004]
[1724853623763,0.803229,59392.0,59381.0,0.00022448]
[1724853623764,0.168381,59389.0,59381.0,0.00022448]
[1724853624020,0.72465448,59392.0,59386.0,0.168388]
[1724853624021,0.50487,59388.0,59386.0,0.168388]
[1724853624279,0.50487,59388.0,59387.0,0.168387]
[1724853624516,0.50487,59388.0,59387.0,0.0168387]
[1724853624753,0.44564332,59388.0,59387.0,0.67862177]
[1724853624979,0.44564332,59388.0,59387.0,1.266209]
[1724853625275,0.44564332,59388.0,59387.0,1.44466977]
[1724853625537,0.44564332,59388.0,59387.0,0.505161]
[1724853625790,0.44564332,59388.0,59387.0,1.09789577]
[1724853626028,0.44564332,59388.0,59381.0,0.0796]
[1724853626289,0.44564332,59388.0,59387.0,0.505161]
[1724853626522,0.44564332,59388.0,59387.0,1.34716977]
[1724853626768,0.44564332,59388.0,59381.0,0.0796]
[1724853627006,0.44564332,59388.0,59387.0,0.51266643]
[1724853627257,0.44564332,59388.0,59387.0,0.505161]
[1724853627505,0.44564332,59388.0,59387.0,0.84944043]
[1724853627736,0.44564332,59388.0,59387.0,1.3596752]
[1724853627968,0.44564332,59388.0,59387.0,0.84944043]
[1724853628986,0.44564332,59388.0,59387.0,1.18621443]
[1724853629479,0.44564332,59388.0,59387.0,0.51266643]
[1724853629712,0.44564332,59388.0,59387.0,0.00750543]
[1724853629951,0.69452732,59388.0,59387.0,0.00750543]
[1724853630175,0.842005,59382.0,59381.0,0.0009042]
[1724853630407,0.95084632,59382.0,59381.0,0.0009042]
[1724853630656,0.44564332,59382.0,59381.0,0.0009042]
[1724853631170,0.64044575,59382.0,59381.0,0.0083815]
[1724853631421,1.79675175,59382.0,59381.0,0.0009042]
[1724853631695,1.12314775,59382.0,59381.0,0.0009042]
[1724853631928,0.78634575,59382.0,59381.0,0.0009042]
[1724853632164,1.45994975,59382.0,59381.0,0.0009042]
[1724853632685,0.61794475,59382.0,59381.0,0.0009042]
[1724853633193,0.47204475,59382.0,59381.0,0.8429242]
[1724853633424,0.47204475,59382.0,59381.0,0.8504015]
[1724853633715,0.47204475,59382.0,59381.0,1.35567027]
[1724853634003,0.47204475,59382.0,59381.0,1.44827027]
[1724853634004,0.46473488,59382.0,59381.0,1.44827027]
[1724853634242,0.46473488,59382.0,59381.0,1.47325806]
[1724853634513,0.43833345,59382.0,59381.0,1.45025806]
[1724853634747,0.43833345,59382.0,59381.0,0.51558129]
[1724853635014,0.51953345,59382.0,59381.0,0.01036929]
[1724853635388,1.25563745,59382.0,59381.0,0.01036929]
[1724853635578,1.08723645,59382.0,59381.0,0.0009042]
[1724853635808,1.08723645,59382.0,59371.0,0.0004]
[1724853635809,0.582888,59372.0,59371.0,0.0004]
[1724853636076,0.75036245,59372.0,59371.0,0.0004]
[1724853636334,1.42408045,59372.0,59371.0,0.0004]
[1724853636564,1.76093945,59372.0,59371.0,0.0004]
[1724853637023,1.08722145,59372.0,59371.0,0.0004]
[1724853637267,1.42408045,59372.0,59371.0,0.0004]
[1724853637498,1.42408045,59372.0,59360.0,0.0022844]
[1724853637499,0.587781,59361.0,59360.0,0.0022844]
[1724853637755,1.02611445,59361.0,59360.0,0.0022844]
[1724853638028,0.52073345,59361.0,59360.0,0.0022844]
[1724853638263,1.02611445,59361.0,59360.0,0.0022844]
[1724853638496,1.42883313,59361.0,59360.0,0.0022844]
[1724853638737,1.76575413,59361.0,59360.0,0.0022844]
[1724853638960,0.005,59359.0,59351.0,0.0004]
[1724853639217,0.92345213,59361.0,59351.0,0.0004]
[1724853639218,0.005,59357.0,59351.0,0.0004]
[1724853639451,0.581052,59341.0,59340.0,0.009042]
[1724853639687,1.10938545,59341.0,59340.0,0.009042]
[1724853639948,0.50383345,59341.0,59340.0,0.009042]
[1724853640173,0.43833345,59341.0,59340.0,0.177562]
[1724853640410,0.43833345,59341.0,59340.0,0.851642]
[1724853640646,0.43833345,59341.0,59340.0,0.009042]
[1724853640647,0.60685045,59341.0,59340.0,0.009042]
[1724853640875,0.60685045,59341.0,59331.0,0.0004]
[1724853640876,0.168543,59332.0,59331.0,0.0004]
[1724853641131,0.505629,59332.0,59331.0,0.0004]
[1724853641377,0.0655,59339.0,59331.0,0.0004]
[1724853641739,0.0655,59339.0,59338.0,0.337052]
[1724853641928,0.0773,59353.0,59344.0,0.337017]
[1724853642187,0.04996792,59343.0,59342.0,0.168514]
[1724853642433,0.04996792,59343.0,59342.0,0.842572]
[1724853642662,0.49107002,59352.0,59332.0,0.17046076]
[1724853642663,0.49007,59352.0,59351.0,0.168489]
[1724853642920,0.49007,59352.0,59351.0,0.505467]
[1724853643171,0.49007,59352.0,59351.0,0.842445]
[1724853643867,0.49007,59352.0,59351.0,1.18142299]
[1724853644090,0.49007,59352.0,59351.0,1.179423]
[1724853645058,0.49007,59352.0,59351.0,1.18142299]
[1724853645285,0.49007,59352.0,59351.0,1.179423]
[1724853645518,0.49007,59352.0,59351.0,1.35488376]
[1724853645741,0.49007,59352.0,59351.0,1.85416176]
[1724853646223,0.49007,59352.0,59351.0,1.313723]
[1724853646431,0.49007,59352.0,59351.0,0.842445]
[1724853647126,0.49007,59352.0,59351.0,1.179423]
[1724853647348,0.49007,59352.0,59351.0,0.842445]
[1724853648159,0.49007,59352.0,59351.0,1.179423]
[1724853648424,0.49007,59352.0,59351.0,1.17949527]
[1724853649160,0.49007,59352.0,59351.0,1.35495603]
[1724853649390,0.49007,59352.0,59351.0,1.80283403]
[1724853649880,0.49007,59352.0,59351.0,1.77983403]
[1724853650112,0.63197,59352.0,59351.0,0.50553927]
[1724853650366,0.63197,59352.0,59351.0,7.227e-05]
[1724853650367,1.4744,59352.0,59351.0,7.227e-05]
[1724853650589,1.97992364,59352.0,59351.0,7.227e-05]
[1724853651343,1.811372,59352.0,59351.0,7.227e-05]
[1724853651610,0.968942,59352.0,59331.0,0.0004]
[1724853651875,0.00100002,59351.0,59343.0,0.337022]
[1724853652111,0.49007,59352.0,59351.0,0.168489]
[1724853652346,0.246368,59359.0,59349.0,0.505483]
[1724853652347,0.321581,59350.0,59349.0,0.505483]
[1724853652586,0.321581,59350.0,59349.0,1.35292177]
[1724853652824,0.321581,59350.0,59349.0,1.76961077]
[1724853653089,0.321581,59350.0,59349.0,2.53490245]
[1724853653314,0.0636,59380.0,59361.0,0.005]
[1724853653560,0.0636,59380.0,59375.0,0.16842]
[1724853653792,0.0636,59380.0,59364.0,0.00699999]
[1724853654051,0.0636,59380.0,59369.0,0.336874]
[1724853654283,0.00100002,59379.0,59367.0,0.0826]
[1724853654553,0.00100002,59379.0,59363.0,0.336909]
[1724853654554,0.00100002,59379.0,59371.0,0.168431]
[1724853654791,0.168421,59375.0,59369.0,0.168437]
[1724853655021,0.168423,59375.0,59369.0,0.168437]
[1724853655268,0.168423,59375.0,59370.0,0.168434]
[1724853655492,0.168423,59375.0,59361.0,0.005]
[1724853655493,0.32145,59374.0,59373.0,0.168424]
[1724853655732,0.32145,59374.0,59373.0,1.178983]
[1724853656184,0.32145,59374.0,59373.0,1.82359677]
[1724853656417,0.32145,59374.0,59373.0,1.85859676]
[1724853656933,0.32145,59374.0,59373.0,1.01059077]
[1724853657188,0.32145,59374.0,59373.0,0.84213]
[1724853657407,0.32145,59374.0,59373.0,0.168426]
[1724853657646,0.32145,59374.0,59373.0,0.505279]
[1724853657865,0.32145,59374.0,59373.0,0.842132]
[1724853658069,0.32145,59374.0,59373.0,0.505279]
[1724853658538,0.32145,59374.0,59373.0,0.842132]
[1724853658750,0.34785362,59374.0,59373.0,0.505279]
[1724853658986,0.34785362,59374.0,59373.0,1.38544577]
[1724853659195,1e-08,59374.0,59373.0,1.38544577]
[1724853659419,0.05030287,59388.0,59387.0,0.841935]
[1724853659899,0.000824,59388.0,59387.0,0.836935]
[1724853660118,0.000824,59388.0,59387.0,1.173709]
[1724853660346,0.000824,59388.0,59387.0,1.34716977]
[1724853660592,0.000824,59388.0,59387.0,1.42226977]
[1724853660873,0.000824,59388.0,59387.0,1.42426976]
[1724853661146,0.000824,59388.0,59387.0,1.79404376]
[1724853661391,0.04941588,59399.0,59398.0,1.26048799]
[1724853661629,0.50540786,59409.0,59408.0,0.841635]
[1724853661899,0.00818,59412.0,59411.0,0.504955]
[1724853662150,0.00818,59412.0,59411.0,1.76462677]
[1724853662405,0.00818,59412.0,59411.0,1.82832676]
[1724853662671,0.0631,59444.0,59438.0,0.841212]
[1724853662919,0.00823,59448.0,59438.0,1.35115777]
[1724853662920,0.51358786,59439.0,59438.0,1.35115777]
[1724853663227,0.00818,59439.0,59438.0,1.35315776]
[1724853663798,0.00818,59439.0,59438.0,1.74134276]
[1724853664022,0.00823,59448.0,59447.0,1.53612168]
[1724853664292,0.00823,59448.0,59447.0,2.14291645]
[1724853664529,0.00823,59448.0,59447.0,2.47935045]
[1724853664530,0.00474856,59448.0,59447.0,2.47935045]
[1724853664766,0.50540786,59469.0,59458.0,1.192298]
[1724853664997,0.04936684,59470.0,59458.0,2.14193245]
[1724853665220,0.04936684,59470.0,59458.0,2.24193245]
[1724853665446,0.00818,59472.0,59458.0,2.24193245]
[1724853665950,0.00818,59472.0,59458.0,2.28883245]
[1724853666871,0.00818,59472.0,59458.0,1.10258777]
[1724853666876,0.168165,59466.0,59458.0,0.168185]
[1724853666881,0.168178,59461.0,59444.0,0.005]
[1724853667123,0.0618,59466.0,59458.0,0.168185]
[1724853667651,0.0618,59466.0,59439.0,0.005]
[1724853667652,0.336349,59462.0,59439.0,0.005]
[1724853667878,0.168193,59456.0,59444.0,0.336446]
[1724853668109,0.00221902,59459.0,59442.0,0.336461]
[1724853668366,0.1682,59453.0,59442.0,0.50492177]
[1724853668702,0.168223,59445.0,59438.0,0.168242]
[1724853668928,0.0659,59447.0,59434.0,0.50540786]
[1724853669169,0.0659,59447.0,59419.0,0.005]
[1724853669170,0.06690002,59447.0,59419.0,0.005]
[1724853669402,0.06690002,59447.0,59419.0,0.16846077]
[1724853669403,0.16826,59432.0,59419.0,0.16846077]
[1724853669623,0.168264,59431.0,59423.0,0.168283]
[1724853669851,0.168257,59433.0,59421.0,0.336579]
[1724853670090,0.168257,59433.0,59416.0,0.336607]
[1724853670091,0.0811,59434.0,59400.0,0.51040786]
[1724853670322,0.336562,59425.0,59402.0,0.005]
[1724853670605,0.0861,59434.0,59402.0,0.005]
[1724853670606,0.0861,59434.0,59408.0,0.33665]
[1724853670866,0.0861,59434.0,59409.0,0.17182667]
[1724853670867,0.0811,59434.0,59409.0,0.17182667]
[1724853671112,0.168261,59432.0,59411.0,0.005]
[1724853671344,0.08210002,59434.0,59414.0,0.005]
[1724853671566,0.08210002,59434.0,59415.0,0.16846077]
[1724853671567,0.00100002,59433.0,59415.0,0.16846077]
[1724853672044,0.16826,59432.0,59425.0,0.168276]
[1724853672309,0.00100002,59431.0,59422.0,0.336575]
[1724853672548,0.00100002,59431.0,59415.0,0.16846077]
[1724853672549,0.00100002,59433.0,59415.0,0.16846077]
[1724853672783,0.13100444,59434.0,59433.0,0.168256]
[1724853672784,0.04990444,59434.0,59433.0,0.168256]
[1724853673058,0.04990444,59434.0,59433.0,1.01474277]
[1724853673308,0.0644,59446.0,59428.0,0.005]
[1724853673541,0.0644,59446.0,59431.0,0.005]
[1724853673542,0.11359283,59446.0,59431.0,0.005]
[1724853674002,0.11359283,59446.0,59445.0,0.504667]
[1724853674005,0.04919283,59446.0,59445.0,1.177557]
[1724853674225,0.0785,59452.0,59448.0,0.336427]
[1724853674484,0.0785,59452.0,59450.0,0.168207]
[1724853674737,0.0785,59452.0,59451.0,0.841027]
[1724853674970,0.0644,59455.0,59454.0,0.504591]
[1724853675208,0.001219,59459.0,59458.0,0.168185]
[1724853675666,0.001219,59459.0,59442.0,0.0773]
[1724853675667,0.001219,59459.0,59438.0,0.005]
[1724853675910,0.001219,59459.0,59437.0,0.01]
[1724853675911,0.00100002,59458.0,59437.0,0.336486]
[1724853676171,0.168212,59449.0,59434.0,0.50540786]
[1724853676421,0.168232,59442.0,59430.0,0.16846077]
[1724853676885,0.168226,59444.0,59430.0,0.16846077]
[1724853677124,0.336435,59447.0,59430.0,0.16846077]
[1724853677355,0.09705464,59500.0,59421.0,0.01199999]
[1724853677356,0.02637405,59441.0,59437.0,0.50540786]
[1724853677612,0.02637405,59441.0,59431.0,0.16846077]
[1724853677613,0.02637405,59441.0,59440.0,0.504709]
[1724853677867,0.02637405,59441.0,59440.0,0.168236]
[1724853678094,0.02637405,59441.0,59434.0,0.336506]
[1724853678377,0.02637405,59441.0,59423.0,0.005]
[1724853678638,0.02637405,59441.0,59422.0,0.01]
[1724853678639,0.168237,59440.0,59426.0,0.336551]
[1724853678905,0.02637405,59441.0,59440.0,0.841182]
[1724853679367,0.02637405,59441.0,59440.0,0.504709]
[1724853679602,0.02637405,59441.0,59440.0,0.841182]
[1724853679851,0.02637405,59441.0,59427.0,0.16846077]
[1724853680120,0.00100002,59440.0,59422.0,0.336573]
[1724853680379,0.168282,59425.0,59416.0,0.50540786]
[1724853680632,0.336486,59438.0,59422.0,0.168286]
[1724853680897,0.1415,59439.0,59416.0,0.67386863]
[1724853680898,0.168258,59433.0,59427.0,0.168271]
[1724853681144,0.0607,59414.0,59411.0,0.0008998]
[1724853681370,0.0607,59414.0,59413.0,0.168313]
[1724853681604,0.0607,59414.0,59411.0,0.0008998]
[1724853682076,0.0607,59414.0,59413.0,0.168313]
[1724853682322,0.0607,59414.0,59413.0,0.841565]
[1724853682545,0.04931653,59425.0,59424.0,0.504846]
[1724853682762,0.56485685,59438.0,59418.0,0.005]
[1724853682972,0.02637919,59423.0,59419.0,0.17182577]
[1724853683204,0.02637919,59423.0,59422.0,1.183012]
[1724853683438,0.0768,59438.0,59422.0,0.16846077]
[1724853683648,0.02637772,59423.0,59422.0,0.504862]
[1724853683865,0.0768,59438.0,59437.0,0.504735]
[1724853684131,0.0768,59438.0,59422.0,0.16846077]
[1724853684347,0.0768,59438.0,59422.0,0.504862]
[1724853684348,0.02637765,59423.0,59422.0,0.504862]
[1724853684566,0.002,59452.0,59422.0,0.504862]
[1724853684567,0.0795,59445.0,59425.0,0.005]
[1724853684796,0.08425952,59504.0,59416.0,0.50540786]
[1724853684797,0.168195,59455.0,59447.0,0.168217]
[1724853685005,0.337586,59459.0,59447.0,0.168217]
[1724853685006,0.0795,59452.0,59447.0,0.841085]
[1724853685476,0.04383869,59448.0,59447.0,0.841085]
[1724853685940,0.04383869,59448.0,59447.0,1.00954577]
[1724853686163,0.04383869,59448.0,59447.0,1.42177977]
[1724853686390,0.02637089,59448.0,59447.0,0.841085]
[1724853686620,0.02637089,59448.0,59447.0,0.504651]
[1724853686853,0.02637089,59448.0,59447.0,0.841085]
[1724853687711,0.02637089,59448.0,59445.0,0.16822]
[1724853687922,0.0803,59447.0,59437.0,0.168244]
[1724853688126,0.0803,59447.0,59434.0,0.336506]
[1724853688335,0.02637089,59448.0,59437.0,0.17182509]
[1724853688567,0.02637089,59448.0,59447.0,0.504651]
[1724853689202,0.02637089,59448.0,59447.0,0.841085]
[1724853689890,0.02637089,59448.0,59442.0,0.0821]
[1724853690095,0.02637089,59448.0,59447.0,0.841085]